fUST/lending_fUST_20241216
["ID","MTS","AMOUNT","RATE_DAILY","PERIOD"]
[345529848,1734316241311,-502.38289523,0.00027397,7]
[345529849,1734316241320,-506.55125742,0.00027397,7]
[345529850,1734316241331,-505.44054422,0.00027397,7]
[345529851,1734316241340,-500.0,0.00027397,7]
[345529852,1734316241350,-502.62402525,0.00027397,7]
[345529853,1734316241360,-502.60549531,0.00027397,7]
[345529854,1734316241370,-503.56348278,0.00027397,7]
[345529855,1734316241472,-500.0,0.00027397,7]
[345529856,1734316241494,-505.16453108,0.00027397,7]
[345529857,1734316241504,-500.0,0.00027397,7]
[345529858,1734316241514,-505.38685492,0.00027397,7]
[345529859,1734316241525,-502.63779928,0.00027397,7]
[345529860,1734316241535,-508.13938789,0.00027397,7]
[345529861,1734316241545,-500.0,0.00027397,7]
[345529862,1734316241554,-281.62180116,0.00027397,7]
[345529863,1734316241564,-504.90088562,0.00027397,7]
[345529864,1734316241574,-500.0,0.00027397,7]
[345529865,1734316241583,-627.07539368,0.00027397,7]
[345529866,1734316241593,-151.0,0.00027397,7]
[345529867,1734316241604,-151.0,0.00027397,7]
[345529868,1734316241613,-500.0,0.00027397,7]
[345529869,1734316241623,-151.0,0.00027397,7]
[345529870,1734316241634,-151.0,0.00027397,7]
[345529871,1734316241643,-501.74049719,0.00027397,7]
[345529872,1734316241653,-500.0,0.00027397,7]
[345529873,1734316241663,-188.66672715,0.00027397,7]
[345529874,1734316241673,-500.0,0.00027397,7]
[345529875,1734316241682,-500.0,0.00027397,7]
[345529876,1734316241692,-503.72622432,0.00027397,7]
[345529877,1734316241701,-500.0,0.00027397,7]
[345529878,1734316241710,-152.530974,0.00027397,7]
[345529879,1734316241720,-512.22181688,0.00027397,7]
[345529880,1734316241730,-500.0,0.00027397,7]
[345529881,1734316241740,-616.310177,0.00027397,7]
[345529882,1734316241750,-616.310177,0.00027397,7]
[345529883,1734316241759,-500.0,0.00027397,7]
[345529884,1734316241769,-616.310177,0.00027397,7]
[345529885,1734316241779,-502.09423246,0.00027397,7]
[345529886,1734316241788,-616.310177,0.00027397,7]
[345529887,1734316241798,-500.0,0.00027397,7]
[345529888,1734316241808,-506.03387085,0.00027397,7]
[345529889,1734316241818,-506.81841463,0.00027397,7]
[345529890,1734316241827,-500.0,0.00027397,7]
[345529891,1734316241837,-502.7328526,0.00027397,7]
[345529892,1734316241846,-500.0,0.00027397,7]
[345529893,1734316241855,-500.0,0.00027397,7]
[345529894,1734316241865,-500.0,0.00027397,7]
[345529895,1734316241875,-500.0,0.00027397,7]
[345529896,1734316241888,-501.14957545,0.00027397,7]
[345529897,1734316241898,-695.757683,0.00027397,7]
[345529898,1734316241907,-151.0,0.00027397,7]
[345529899,1734316241917,-695.757683,0.00027397,7]
[345529900,1734316241927,-151.0,0.00027397,7]
[345529901,1734316241936,-695.757683,0.00027397,7]
[345529902,1734316241946,-500.0,0.00027397,7]
[345529903,1734316241956,-695.757683,0.00027397,7]
[345529904,1734316241965,-501.65514152,0.00027397,7]
[345529905,1734316241975,-151.0,0.00027397,7]
[345529906,1734316241984,-500.0,0.00027397,7]
[345529907,1734316241993,-500.0,0.00027397,7]
[345529908,1734316242002,-151.0,0.00027397,7]
[345529909,1734316242012,-229.11721888,0.00027397,7]
[345529910,1734316242022,-1371.030753,0.00027397,7]
[345529911,1734316242032,-167.843026,0.00027397,7]
[345529912,1734316242043,-1371.030753,0.00027397,7]
[345529913,1734316242053,-500.0,0.00027397,7]
[345529914,1734316242063,-500.0,0.00027397,7]
[345529915,1734316242074,-1371.030753,0.00027397,7]
[345529916,1734316242085,-1371.030753,0.00027397,7]
[345529917,1734316242096,-503.13911303,0.00027397,7]
[345529918,1734316242105,-501.15342139,0.00027397,7]
[345529919,1734316242115,-154.196248,0.00027397,7]
[345529920,1734316242124,-500.0,0.00027397,7]
[345529921,1734316242136,-500.0,0.00027397,7]
[345529922,1734316242145,-500.0,0.00027397,7]
[345529923,1734316242155,-500.0,0.00027397,7]
[345529924,1734316242164,-500.0,0.00027397,7]
[345529925,1734316242173,-500.0,0.00027397,7]
[345529926,1734316242182,-500.74514755,0.00027397,7]
[345529927,1734316242193,-500.0,0.00027397,7]
[345529928,1734316242203,-151.0,0.00027397,7]
[345529929,1734316242212,-151.0,0.00027397,7]
[345529930,1734316242222,-500.0,0.00027397,7]
[345529931,1734316242232,-151.0,0.00027397,7]
[345529932,1734316242241,-501.51146595,0.00027397,7]
[345529933,1734316242251,-151.0,0.00027397,7]
[345529934,1734316242260,-151.0,0.00027397,7]
[345529935,1734316242269,-151.0,0.00027397,7]
[345529936,1734316242278,-501.79564149,0.00027397,7]
[345529937,1734316242288,-716.126659,0.00027397,7]
[345529938,1734316242298,-500.0,0.00027397,7]
[345529939,1734316242308,-716.126659,0.00027397,7]
[345529940,1734316242318,-502.53004187,0.00027397,7]
[345529941,1734316242328,-501.65462542,0.00027397,7]
[345529942,1734316242338,-491.52401525,0.00027397,7]
[345529943,1734316242347,-411.62151465,0.00027397,7]
[345529944,1734316242357,-500.0,0.00027397,7]
[345529945,1734316242366,-716.126659,0.00027397,7]
[345529946,1734316242376,-716.126659,0.00027397,7]
[345529947,1734316242389,-500.98404456,0.00027397,7]
[345529948,1734316242399,-151.0,0.00027397,7]
[345529949,1734316242408,-151.0,0.00027397,7]
[345529950,1734316242417,-539.10103757,0.00027397,7]
[345529951,1734316242428,-501.2055227,0.00027397,7]
[345529952,1734316242438,-151.0,0.00027397,7]
[345529953,1734316242448,-500.0,0.00027397,7]
[345529954,1734316242459,-502.53068108,0.00027397,7]
[345529955,1734316242470,-500.0,0.00027397,7]
[345529956,1734316242479,-181.835784,0.00027397,7]
[345529957,1734316242489,-500.0,0.00027397,7]
[345529958,1734316242498,-628.29501065,0.00027397,7]
[345529959,1734316242510,-500.0,0.00027397,7]
[345529960,1734316242519,-500.0,0.00027397,7]
[345529961,1734316242528,-824.832737,0.00027397,7]
[345529962,1734316242538,-824.832737,0.00027397,7]
[345529963,1734316242546,-500.0,0.00027397,7]
[345529964,1734316242556,-500.0,0.00027397,7]
[345529965,1734316242565,-500.0,0.00027397,7]
[345529967,1734316242574,-500.0,0.00027397,7]
[345529970,1734316242583,-824.832737,0.00027397,7]
[345529972,1734316242593,-824.832737,0.00027397,7]
[345529974,1734316242602,-488.87686724,0.00027397,7]
[345529977,1734316242612,-501.2076488,0.00027397,7]
[345529979,1734316242621,-500.0,0.00027397,7]
[345529980,1734316242634,-151.846382,0.00027397,7]
[345529982,1734316242644,-510.73321503,0.00027397,7]
[345529983,1734316242654,-500.0,0.00027397,7]
[345529984,1734316242664,-500.0,0.00027397,7]
[345529985,1734316242673,-500.0,0.00027397,7]
[345529986,1734316242683,-500.0,0.00027397,7]
[345529987,1734316242692,-151.0,0.00027397,7]
[345529988,1734316242701,-151.0,0.00027397,7]
[345529989,1734316242710,-501.34176288,0.00027397,7]
[345529990,1734316242720,-500.0,0.00027397,7]
[345529991,1734316242730,-500.0,0.00027397,7]
[345529992,1734316242740,-151.0,0.00027397,7]
[345529993,1734316242750,-151.0,0.00027397,7]
[345529994,1734316242759,-500.0,0.00027397,7]
[345529996,1734316242768,-501.84630422,0.00027397,7]
[345529998,1734316242778,-502.76001849,0.00027397,7]
[345530000,1734316242787,-151.0,0.00027397,7]
[345530003,1734316242796,-500.0,0.00027397,7]
[345530006,1734316242806,-500.0,0.00027397,7]
[345530008,1734316242815,-151.0,0.00027397,7]
[345530011,1734316242825,-500.0,0.00027397,7]
[345530014,1734316242835,-500.0,0.00027397,7]
[345530017,1734316242844,-151.0,0.00027397,7]
[345530019,1734316242854,-503.50771366,0.00027397,7]
[345530020,1734316242864,-171.088538,0.00027397,7]
[345530021,1734316242874,-505.15480537,0.00027397,7]
[345530022,1734316242888,-201.889375,0.00027397,7]
[345530023,1734316242897,-201.889375,0.00027397,7]
[345530024,1734316242906,-500.0,0.00027397,7]
[345530025,1734316242915,-503.76657928,0.00027397,7]
[345530026,1734316242924,-500.0,0.00027397,7]
[345530027,1734316242934,-201.889375,0.00027397,7]
[345530028,1734316242943,-201.889375,0.00027397,7]
[345530029,1734316242952,-151.0,0.00027397,7]
[345530030,1734316242962,-151.0,0.00027397,7]
[345530031,1734316242972,-503.62184828,0.00027397,7]
[345530032,1734316242982,-500.0,0.00027397,7]
[345530033,1734316242998,-500.0,0.00027397,7]
[345530034,1734316243008,-501.10856102,0.00027397,7]
[345530035,1734316243019,-158.52666069,0.00027397,7]
[345530036,1734316243030,-500.0,0.00027397,7]
[345530037,1734316243040,-1369.239457,0.00027397,7]
[345530038,1734316243050,-1369.239457,0.00027397,7]
[345530039,1734316243059,-500.0,0.00027397,7]
[345530040,1734316243068,-1369.239457,0.00027397,7]
[345530041,1734316243077,-1369.239457,0.00027397,7]
[345530042,1734316243086,-79689.52,0.00027397,7]
[345530043,1734316243096,-500.0,0.00027397,7]
[345530044,1734316243105,-507.09851157,0.00027397,7]
[345530045,1734316243114,-500.0,0.00027397,7]
[345530046,1734316243123,-500.0,0.00027397,7]
[345530047,1734316243140,-500.0,0.00027397,7]
[345530048,1734316243150,-500.0,0.00027397,7]
[345530049,1734316243160,-500.0,0.00027397,7]
[345530050,1734316243169,-500.0,0.00027397,7]
[345530051,1734316243178,-500.0,0.00027397,7]
[345530052,1734316243189,-505.32923533,0.00027397,7]
[345530053,1734316243198,-500.0,0.00027397,7]
[345530054,1734316243208,-1321.974824,0.00027397,7]
[345530055,1734316243217,-1321.974824,0.00027397,7]
[345530056,1734316243226,-500.0,0.00027397,7]
[345530057,1734316243235,-500.0,0.00027397,7]
[345530058,1734316243244,-510.09281298,0.00027397,7]
[345530059,1734316243254,-1321.974824,0.00027397,7]
[345530060,1734316243266,-1321.974824,0.00027397,7]
[345530061,1734316243277,-500.99448498,0.00027397,7]
[345530062,1734316243286,-500.0,0.00027397,7]
[345530063,1734316243296,-1808.98,0.00027397,7]
[345530064,1734316243395,-502.14819514,0.00027397,7]
[345530065,1734316243405,-500.0,0.00027397,7]
[345530066,1734316243415,-500.10676438,0.00027397,7]
[345530067,1734316243426,-500.0,0.00027397,7]
[345530068,1734316243439,-454.71255011,0.00027397,7]
[345530069,1734316243449,-512.24529412,0.00027397,7]
[345530070,1734316243459,-500.0,0.00027397,7]
[345530071,1734316243469,-500.0,0.00027397,7]
[345530072,1734316243480,-500.0,0.00027397,7]
[345530073,1734316243491,-500.0,0.00027397,7]
[345530074,1734316243501,-151.0,0.00027397,7]
[345530075,1734316243511,-151.0,0.00027397,7]
[345530076,1734316243521,-500.0,0.00027397,7]
[345530077,1734316243531,-500.0,0.00027397,7]
[345530078,1734316243541,-500.0,0.00027397,2]
[345530079,1734316243551,-500.0,0.00027397,7]
[345530080,1734316243560,-500.0,0.00027397,7]
[345530081,1734316243570,-506.83928555,0.00027397,7]
[345530082,1734316243579,-500.0,0.00027397,7]
[345530083,1734316243589,-501.90130248,0.00027397,7]
[345530084,1734316243599,-500.0,0.00027397,7]
[345530085,1734316243610,-400.82791068,0.00027397,7]
[345530086,1734316243620,-503.05581639,0.00027397,7]
[345530087,1734316243631,-500.0,0.00027397,7]
[345530088,1734316243644,-500.0,0.00027397,7]
[345530089,1734316243654,-500.0,0.00027397,7]
[345530090,1734316243665,-506.64602938,0.00027397,7]
[345530091,1734316243675,-500.0,0.00027397,7]
[345530092,1734316243685,-500.0,0.00027397,7]
[345530093,1734316243695,-500.0,0.00027397,7]
[345530094,1734316243705,-533.39566696,0.00027397,7]
[345530095,1734316243715,-943.8,0.00027397,7]
[345530096,1734316243725,-500.0,0.00027397,7]
[345530097,1734316243735,-208.99163343,0.00027397,7]
[345530098,1734316243745,-512.62968252,0.00027397,7]
[345530099,1734316243754,-503.79406505,0.00027397,7]
[345530100,1734316243764,-990.576192,0.00027397,7]
[345530101,1734316243773,-990.576192,0.00027397,7]
[345530102,1734316243783,-990.576192,0.00027397,7]
[345530103,1734316243792,-151.0,0.00027397,7]
[345530104,1734316243802,-500.0,0.00027397,7]
[345530105,1734316243811,-151.0,0.00027397,7]
[345530106,1734316243820,-990.576192,0.00027397,7]
[345530107,1734316243830,-151.0,0.00027397,7]
[345530108,1734316243840,-151.0,0.00027397,7]
[345530109,1734316243850,-164.90700594,0.00027397,7]
[345530110,1734316243861,-500.0,0.00027397,7]
[345530111,1734316243871,-507.89115124,0.00027397,7]
[345530112,1734316243881,-501.78688542,0.00027397,7]
[345530113,1734316243894,-261.62976515,0.00027397,7]
[345530114,1734316243904,-503.06587505,0.00027397,7]
[345530115,1734316243915,-509.83153385,0.00027397,7]
[345530116,1734316243925,-502.87093643,0.00027397,7]
[345530117,1734316243935,-506.54414155,0.00027397,7]
[345530118,1734316243944,-500.0,0.00027397,7]
[345530119,1734316243954,-643.70911293,0.00027397,7]
[345530120,1734316243964,-504.97892649,0.00027397,7]
[345530121,1734316243973,-196.22289417,0.00027397,7]
[345530122,1734316243982,-427.10763945,0.00027397,7]
[345530123,1734316243992,-510.39780587,0.00027397,7]
[345530124,1734316244002,-500.0,0.00027397,7]
[345530125,1734316244012,-502.88002799,0.00027397,7]
[345530126,1734316244022,-501.98180804,0.00027397,7]
[345530127,1734316244031,-500.0,0.00027397,7]
[345530128,1734316244041,-273.59105054,0.00027397,2]
[345530129,1734316244051,-500.0,0.00027397,7]
[345530130,1734316244060,-529.51124773,0.00027397,7]
[345530131,1734316244069,-505.67026531,0.00027397,7]
[345530132,1734316244079,-500.0,0.00027397,7]
[345530133,1734316244088,-501.44250337,0.00027397,7]
[345530134,1734316244099,-256.17394865,0.00027397,7]
[345530135,1734316244108,-460.346303,0.00027397,7]
[345530136,1734316244118,-460.346303,0.00027397,7]
[345530137,1734316244127,-460.346303,0.00027397,7]
[345530138,1734316244143,-460.346303,0.00027397,7]
[345530139,1734316244154,-151.0,0.00027397,7]
[345530140,1734316244164,-151.0,0.00027397,7]
[345530141,1734316244174,-503.67050746,0.00027397,7]
[345530142,1734316244184,-500.0,0.00027397,7]
[345530143,1734316244193,-500.0,0.00027397,7]
[345530144,1734316244203,-504.16219846,0.00027397,7]
[345530145,1734316244212,-500.0,0.00027397,7]
[345530146,1734316244222,-500.0,0.00027397,7]
[345530147,1734316244232,-502.33676985,0.00027397,7]
[345530148,1734316244241,-1047.75,0.00027397,7]
[345530149,1734316244251,-500.0,0.00027397,7]
[345530150,1734316244260,-500.0,0.00027397,7]
[345530151,1734316244269,-504.29986167,0.00027397,7]
[345530152,1734316244278,-521.064071,0.00027397,7]
[345530153,1734316244288,-500.0,0.00027397,7]
[345530154,1734316244297,-512.24222871,0.00027397,7]
[345530155,1734316244306,-500.0,0.00027397,7]
[345530156,1734316244316,-374.698865,0.00027397,7]
[345530157,1734316244326,-648.91,0.00027397,7]
[345530158,1734316244337,-374.698865,0.00027397,7]
[345530159,1734316244346,-508.52324405,0.00027397,7]
[345530160,1734316244356,-374.698865,0.00027397,7]
[345530161,1734316244366,-374.698865,0.00027397,7]
[345530162,1734316244375,-505.78228069,0.00027397,7]
[345530163,1734316244390,-500.0,0.00027397,7]
[345530164,1734316244400,-507.76186186,0.00027397,7]
[345530165,1734316244410,-500.0,0.00027397,7]
[345530166,1734316244421,-152.5507366,0.00027397,7]
[345530167,1734316244433,-500.0,0.00027397,7]
[345530168,1734316244445,-506.64271143,0.00027397,7]
[345530169,1734316244455,-508.41735148,0.00027397,7]
[345530170,1734316244465,-500.0,0.00027397,7]
[345530171,1734316244475,-500.0,0.00027397,7]
[345530172,1734316244485,-151.0,0.00027397,7]
[345530173,1734316244495,-151.0,0.00027397,7]
[345530174,1734316244505,-500.0,0.00027397,7]
[345530175,1734316244516,-268.77703896,0.00027397,7]
[345530176,1734316244527,-500.0,0.00027397,7]
[345530177,1734316244536,-500.0,0.00027397,7]
[345530178,1734316244546,-500.0,0.00027397,7]
[345530179,1734316244556,-500.0,0.00027397,7]
[345530180,1734316244565,-510.75552304,0.00027397,7]
[345530181,1734316244576,-151.0,0.00027397,7]
[345530182,1734316244586,-301.509133,0.00027397,7]
[345530183,1734316244597,-500.0,0.00027397,7]
[345530185,1734316244606,-281.84631583,0.00027397,7]
[345530186,1734316244616,-500.0,0.00027397,7]
[345530187,1734316244626,-500.0,0.00027397,7]
[345530189,1734316244642,-503.75301117,0.00027397,7]
[345530190,1734316244652,-2016.97,0.00027397,7]
[345530191,1734316244662,-500.0,0.00027397,7]
[345530192,1734316244674,-289.004013,0.00027397,7]
[345530193,1734316244684,-500.0,0.00027397,7]
[345530194,1734316244693,-500.0,0.00027397,7]
[345530195,1734316244703,-500.0,0.00027397,7]
[345530196,1734316244713,-500.0,0.00027397,7]
[345530197,1734316244723,-502.75378082,0.00027397,7]
[345530198,1734316244733,-505.38447459,0.00027397,7]
[345530199,1734316244742,-167.20725077,0.00027397,7]
[345530200,1734316244752,-500.0,0.00027397,7]
[345530201,1734316244762,-500.0,0.00027397,7]
[345530202,1734316244772,-501.44422984,0.00027397,7]
[345530203,1734316244781,-500.0,0.00027397,7]
[345530204,1734316244792,-503.38287302,0.00027397,7]
[345530205,1734316244801,-506.13897432,0.00027397,7]
[345530206,1734316244810,-500.0,0.00027397,7]
[345530207,1734316244820,-500.0,0.00027397,7]
[345530208,1734316244830,-500.0,0.00027397,7]
[345530209,1734316244839,-502.54623081,0.00027397,7]
[345530210,1734316244849,-500.0,0.00027397,7]
[345530211,1734316244859,-500.0,0.00027397,7]
[345530212,1734316244869,-212.34498,0.00027397,7]
[345530213,1734316244879,-500.47449633,0.00027397,7]
[345530214,1734316244894,-212.34498,0.00027397,7]
[345530215,1734316244904,-500.0,0.00027397,7]
[345530216,1734316244915,-756.76,0.00027397,5]
[345530217,1734316244925,-500.0,0.00027397,2]
[345530218,1734316244935,-212.34498,0.00027397,7]
[345530219,1734316244944,-212.34498,0.00027397,7]
[345530220,1734316244955,-3377.61,0.00027397,7]
[345530221,1734316244964,-500.0,0.00027397,7]
[345530222,1734316244973,-212.14733607,0.00027397,2]
[345530223,1734316244983,-510.78730795,0.00027397,7]
[345530224,1734316244992,-5182.0944052,0.00027397,2]
[345530225,1734316245002,-161.09788,0.00027397,7]
[345530226,1734316245011,-2154.0,0.00027462,2]
[345530227,1734316245022,-533.0,0.00027462,2]
[345530229,1734316245031,-2369.0,0.00027462,2]
[345530230,1734316245041,-6280.92406991,0.000275,2]
[345530231,1734316245051,-220.0,0.000275,2]
[345530233,1734316245060,-167.6,0.00027578,6]
[345530235,1734316245070,-250.0,0.00027581,2]
[345530237,1734316245079,-2835.86418566,0.00027622,2]
[345530239,1734316245089,-1000.0,0.00027651,2]
[345530240,1734316245165,-364.999353,0.00027659,2]
[345530241,1734316245183,-150.45510065,0.00027671,7]
[345530242,1734316245194,-500.0,0.00027671,7]
[345530243,1734316245204,-755.34946483,0.00027671,7]
[345530244,1734316245213,-500.0,0.00027671,7]
[345530245,1734316245224,-500.0,0.00027671,7]
[345530246,1734316245234,-500.0,0.00027671,7]
[345530247,1734316245244,-500.0,0.00027671,7]
[345530248,1734316245254,-508.23905114,0.00027671,7]
[345530249,1734316245264,-500.0,0.00027671,7]
[345530250,1734316245273,-162.880665,0.00027671,7]
[345530251,1734316245283,-162.880665,0.00027671,7]
[345530252,1734316245292,-500.0,0.00027671,7]
[345530253,1734316245302,-305.870692,0.00027671,7]
[345530254,1734316245312,-305.870692,0.00027671,7]
[345530255,1734316245322,-253.001275,0.00027671,7]
[345530256,1734316245331,-253.001275,0.00027671,7]
[345530257,1734316245341,-151.0,0.00027671,7]
[345530258,1734316245350,-500.0,0.00027671,7]
[345530259,1734316245360,-504.23487329,0.00027671,7]
[345530260,1734316245370,-523.85499727,0.00027671,7]
[345530261,1734316245382,-500.0,0.00027671,7]
[345530262,1734316245393,-500.0,0.00027671,7]
[345530263,1734316245403,-500.0,0.00027671,7]
[345530264,1734316245412,-500.0,0.00027671,7]
[345530265,1734316245421,-500.0,0.00027671,7]
[345530266,1734316245436,-597.598134,0.00027671,7]
[345530267,1734316245446,-597.598134,0.00027671,7]
[345530268,1734316245455,-509.73882818,0.00027671,7]
[345530269,1734316245464,-500.0,0.00027671,7]
[345530270,1734316245474,-529.3610101,0.00027671,7]
[345530271,1734316245483,-500.0,0.00027671,7]
[345530272,1734316245493,-509.75349106,0.00027671,7]
[345530273,1734316245503,-500.0,0.00027671,7]
[345530274,1734316245514,-500.0,0.00027671,7]
[345530275,1734316245524,-151.0,0.00027671,7]
[345530276,1734316245534,-500.0,0.00027671,7]
[345530277,1734316245544,-504.5338189,0.00027671,7]
[345530278,1734316245554,-209.87361148,0.00027671,7]
[345530279,1734316245564,-505.47923096,0.00027671,7]
[345530280,1734316245573,-151.0,0.00027671,7]
[345530281,1734316245583,-504.81937639,0.00027671,7]
[345530282,1734316245592,-500.0,0.00027671,7]
[345530283,1734316245602,-500.0,0.00027671,7]
[345530284,1734316245612,-697.954258,0.00027671,7]
[345530285,1734316245623,-521.18370466,0.00027671,7]
[345530286,1734316245638,-151.0,0.00027671,7]
[345530287,1734316245647,-168.0,0.00027671,7]
[345530288,1734316245658,-500.0,0.00027671,7]
[345530289,1734316245667,-612.55144436,0.00027671,7]
[345530290,1734316245676,-365.29891626,0.00027671,7]
[345530291,1734316245686,-507.07601276,0.00027671,7]
[345530292,1734316245695,-519.60741935,0.00027671,7]
[345530293,1734316245706,-500.0,0.00027671,7]
[345530294,1734316245715,-519.51557087,0.00027671,7]
[345530295,1734316245727,-500.0,0.00027671,7]
[345530296,1734316245738,-500.0,0.00027671,7]
[345530297,1734316245749,-500.0,0.00027671,7]
[345530298,1734316245759,-500.0,0.00027671,7]
[345530299,1734316245769,-507.94801832,0.00027671,7]
[345530300,1734316245779,-500.0,0.00027671,7]
[345530302,1734316245789,-151.0,0.00027671,7]
[345530303,1734316245799,-500.0,0.00027671,7]
[345530305,1734316245808,-151.0,0.00027671,7]
[345530308,1734316245818,-483.19518879,0.00027671,7]
[345530310,1734316245828,-500.0,0.00027671,7]
[345530311,1734316245837,-504.0577385,0.00027671,7]
[345530312,1734316245847,-502.63085816,0.00027671,7]
[345530313,1734316245856,-515.27627266,0.00027671,7]
[345530314,1734316245866,-616.310177,0.00027671,7]
[345530315,1734316245875,-502.51580994,0.00027671,7]
[345530316,1734316245889,-616.310177,0.00027671,7]
[345530317,1734316245898,-505.1671724,0.00027671,7]
[345530319,1734316245907,-503.18730105,0.00027671,7]
[345530320,1734316245916,-219.14568439,0.00027671,7]
[345530321,1734316245925,-506.7638453,0.00027671,7]
[345530322,1734316245935,-506.29351244,0.00027671,7]
[345530323,1734316245944,-503.9768528,0.00027671,7]
[345530324,1734316245954,-695.757683,0.00027671,7]
[345530325,1734316245963,-153.418494,0.00027671,7]
[345530326,1734316245973,-503.79040515,0.00027671,7]
[345530327,1734316245983,-695.757683,0.00027671,7]
[345530328,1734316245992,-575.98209972,0.00027671,7]
[345530329,1734316246002,-308.60991339,0.00027671,7]
[345530330,1734316246012,-151.0,0.00027671,7]
[345530331,1734316246023,-1371.030753,0.00027671,7]
[345530332,1734316246032,-500.0,0.00027671,7]
[345530333,1734316246041,-187.36249707,0.00027671,7]
[345530334,1734316246051,-1371.030753,0.00027671,7]
[345530335,1734316246061,-500.0,0.00027671,7]
[345530336,1734316246071,-500.0,0.00027671,7]
[345530337,1734316246080,-500.0,0.00027671,7]
[345530338,1734316246089,-500.0,0.00027671,7]
[345530339,1734316246098,-500.0,0.00027671,7]
[345530340,1734316246107,-500.0,0.00027671,7]
[345530341,1734316246117,-500.0,0.00027671,7]
[345530342,1734316246126,-151.0,0.00027671,7]
[345530343,1734316246144,-500.0,0.00027671,7]
[345530344,1734316246153,-151.0,0.00027671,7]
[345530345,1734316246162,-151.0,0.00027671,7]
[345530346,1734316246172,-304.90779867,0.00027671,7]
[345530347,1734316246182,-716.126659,0.00027671,7]
[345530350,1734316246191,-500.0,0.00027671,7]
[345530351,1734316246201,-716.126659,0.00027671,7]
[345530353,1734316246210,-151.0,0.00027671,7]
[345530355,1734316246219,-500.0,0.00027671,7]
[345530357,1734316246228,-500.0,0.00027671,7]
[345530359,1734316246238,-519.72591263,0.00027671,7]
[345530362,1734316246247,-504.10490195,0.00027671,7]
[345530364,1734316246256,-824.832737,0.00027671,7]
[345530366,1734316246266,-561.74281175,0.00027671,7]
[345530368,1734316246275,-500.0,0.00027671,7]
[345530370,1734316246285,-500.0,0.00027671,7]
[345530372,1734316246294,-500.0,0.00027671,7]
[345530375,1734316246304,-824.832737,0.00027671,7]
[345530376,1734316246317,-500.0,0.00027671,7]
[345530378,1734316246325,-500.0,0.00027671,7]
[345530381,1734316246335,-500.0,0.00027671,7]
[345530383,1734316246344,-500.0,0.00027671,7]
[345530385,1734316246354,-500.0,0.00027671,7]
[345530386,1734316246363,-151.0,0.00027671,7]
[345530388,1734316246372,-500.0,0.00027671,7]
[345530390,1734316246385,-507.95315676,0.00027671,7]
[345530393,1734316246394,-155.709837,0.00027671,7]
[345530395,1734316246403,-500.0,0.00027671,7]
[345530397,1734316246412,-500.0,0.00027671,7]
[345530399,1734316246422,-425.22870184,0.00027671,7]
[345530401,1734316246432,-151.0,0.00027671,7]
[345530402,1734316246443,-500.0,0.00027671,7]
[345530404,1734316246453,-500.0,0.00027671,7]
[345530407,1734316246462,-201.889375,0.00027671,7]
[345530409,1734316246472,-507.99767355,0.00027671,7]
[345530411,1734316246483,-502.8101452,0.00027671,7]
[345530413,1734316246492,-201.889375,0.00027671,7]
[345530414,1734316246501,-151.0,0.00027671,7]
[345530416,1734316246512,-502.65494426,0.00027671,7]
[345530419,1734316246522,-500.0,0.00027671,7]
[345530420,1734316246531,-500.0,0.00027671,7]
[345530422,1734316246541,-1369.239457,0.00027671,7]